bitfinex/quotes_BTCUSD_20241128
["timestamp","ask_amount","ask_price","bid_price","bid_amount"]
[1732835055144,0.02133955,95717.0,95716.0,0.195775]
[1732835055391,0.02133955,95717.0,95716.0,0.20036046]
[1732835055599,0.0009875,95733.0,95732.0,0.01]
[1732835055811,0.104468,95723.0,95722.0,0.01]
[1732835056023,0.20731321,95723.0,95722.0,0.01]
[1732835056238,0.10284521,95723.0,95722.0,0.01458546]
[1732835056664,0.02115993,95733.0,95722.0,0.01458546]
[1732835056888,0.127459,95731.0,95730.0,0.01]
[1732835057102,0.12584521,95731.0,95730.0,0.01]
[1732835057330,0.23030421,95731.0,95730.0,0.01]
[1732835057548,0.12584521,95731.0,95730.0,0.01]
[1732835058036,0.23030421,95731.0,95730.0,0.01]
[1732835058243,0.23030421,95731.0,95730.0,0.00458546]
[1732835058463,0.11984521,95731.0,95730.0,0.011]
[1732835058941,0.22430421,95731.0,95730.0,0.01558546]
[1732835059162,0.22430421,95731.0,95730.0,0.011]
[1732835059632,0.37430421,95731.0,95730.0,0.001]
[1732835060541,0.10446,95730.0,95728.0,0.00018377]
[1732835060756,0.121459,95731.0,95730.0,0.01]
[1732835060970,0.104461,95729.0,95728.0,0.01018377]
[1732835061210,0.23030621,95729.0,95728.0,0.01018377]
[1732835061889,0.0008623,95731.0,95730.0,0.01]
[1732835062346,0.0008623,95731.0,95730.0,0.11904546]
[1732835062778,0.0008623,95731.0,95730.0,0.01458546]
[1732835063238,0.12670751,95731.0,95730.0,0.01458546]
[1732835063450,0.0008623,95731.0,95730.0,0.09198546]
[1732835063668,0.0008623,95731.0,95730.0,0.01]
[1732835063669,0.10370751,95731.0,95730.0,0.01]
[1732835063909,0.0008623,95731.0,95730.0,0.11901801]
[1732835064126,0.10370751,95731.0,95730.0,0.1342]
[1732835064348,0.10370751,95731.0,95730.0,0.011]
[1732835064613,0.0008623,95731.0,95730.0,0.23866]
[1732835064828,0.0028623,95731.0,95730.0,0.23766]
[1732835065049,0.0008623,95731.0,95730.0,0.23866]
[1732835065480,0.0028623,95731.0,95730.0,0.25866]
[1732835065717,0.0028623,95731.0,95730.0,0.25766]
[1732835066161,0.0028623,95731.0,95730.0,0.1332]
[1732835066371,0.0028623,95731.0,95730.0,0.23766]
[1732835067014,0.0038623,95731.0,95730.0,0.25466]
[1732835067227,0.0018623,95731.0,95730.0,0.25466]
[1732835067456,0.0008623,95731.0,95730.0,0.24566]
[1732835067680,0.0018623,95731.0,95730.0,0.24666]
[1732835068133,0.0018623,95731.0,95730.0,0.25366]
[1732835068588,0.0018623,95731.0,95730.0,0.2546585]
[1732835069476,0.0018623,95731.0,95730.0,0.1501985]
[1732835069688,0.20916651,95731.0,95730.0,0.0269985]
[1732835069903,0.20916651,95731.0,95730.0,0.026]
[1732835070133,0.10470751,95731.0,95730.0,0.026]
[1732835070341,0.0018623,95731.0,95730.0,0.13046]
[1732835070770,0.0018623,95731.0,95730.0,0.026]
[1732835071034,0.0018623,95731.0,95730.0,0.13046]
[1732835071689,0.0018623,95731.0,95730.0,0.2813088]
[1732835071928,0.0018623,95731.0,95730.0,0.27946]
[1732835073299,0.0018623,95731.0,95730.0,0.26946]
[1732835073505,0.104435,95754.0,95751.0,0.01]
[1732835073712,0.10370781,95752.0,95751.0,0.01]
[1732835075514,0.10370781,95752.0,95751.0,0.013]
[1732835075950,0.0008626,95752.0,95751.0,0.013]
[1732835076378,0.0008626,95752.0,95751.0,0.195437]
[1732835076599,0.0008626,95752.0,95751.0,0.19728526]
[1732835076812,0.0008626,95752.0,95751.0,0.20773785]
[1732835077238,0.0008626,95752.0,95751.0,0.19428526]
[1732835077475,0.0008626,95752.0,95751.0,0.20028526]
[1732835077700,0.0008626,95752.0,95751.0,0.21973792]
[1732835077927,0.0008626,95752.0,95751.0,0.21788966]
[1732835078146,0.0008626,95752.0,95751.0,0.21188966]
[1732835078458,0.0008626,95752.0,95751.0,0.21873452]
[1732835078672,0.0008626,95752.0,95751.0,0.21688626]
[1732835079753,0.0008626,95752.0,95751.0,0.26608626]
[1732835079967,0.0008626,95752.0,95751.0,0.27208626]
[1732835080191,0.0008626,95752.0,95751.0,0.27808626]
[1732835080467,0.0008626,95752.0,95751.0,0.27808578]
[1732835080936,0.0008626,95752.0,95751.0,0.26308578]
[1732835081122,0.0008626,95752.0,95751.0,0.28008578]
[1732835081570,0.0008626,95752.0,95751.0,0.28108578]
[1732835081789,0.0008626,95752.0,95751.0,0.28208578]
[1732835083118,0.0008626,95752.0,95751.0,0.29108578]
[1732835083571,0.0008626,95752.0,95751.0,0.29933582]
[1732835083774,0.0018482,95779.0,95778.0,0.01]
[1732835083775,0.0248482,95779.0,95778.0,0.01]
[1732835083998,0.0248482,95779.0,95778.0,0.02144548]
[1732835084205,0.0008623,95779.0,95778.0,0.12770134]
[1732835084438,0.0008623,95779.0,95778.0,0.14770134]
[1732835085368,0.0008623,95779.0,95778.0,0.14624916]
[1732835085800,0.0008623,95779.0,95778.0,0.13484989]
[1732835086031,0.0008623,95779.0,95778.0,0.02044189]
[1732835086032,0.0238623,95779.0,95778.0,0.02044189]
[1732835086270,0.0238623,95779.0,95778.0,0.13684989]
[1732835086710,0.0008623,95779.0,95778.0,0.13484989]
[1732835086910,0.0008623,95779.0,95778.0,0.14184989]
[1732835087727,0.0008623,95779.0,95778.0,0.14369765]
[1732835088381,0.208753,95807.0,95799.0,0.01]
[1732835088594,0.12577017,95810.0,95789.0,0.208791]
[1732835088595,0.10534772,95808.0,95807.0,0.01]
[1732835089563,0.12834772,95808.0,95807.0,0.01]
[1732835089856,0.023,95807.0,95806.0,0.01]
[1732835090062,0.127376,95807.0,95806.0,0.01]
[1732835090670,0.336129,95807.0,95806.0,0.01]
[1732835091086,0.43897421,95807.0,95806.0,0.01]
[1732835091302,0.023,95806.0,95805.0,0.01]
[1732835091506,0.023,95806.0,95799.0,0.0009811]
[1732835091507,0.127384,95800.0,95799.0,0.0009811]
[1732835091748,0.127384,95800.0,95799.0,0.0109811]
[1732835091749,0.23022921,95800.0,95799.0,0.0109811]
[1732835092300,0.23022921,95800.0,95799.0,0.0009811]
[1732835092476,0.23022921,95800.0,95799.0,0.0109811]
[1732835092679,0.23022921,95800.0,95799.0,0.0009811]
[1732835093526,0.45762921,95800.0,95799.0,0.0009811]
[1732835093732,0.45762921,95800.0,95799.0,0.0029811]
[1732835093946,0.45762921,95800.0,95799.0,0.0039811]
[1732835094388,0.45762921,95800.0,95799.0,0.003]
[1732835094598,0.45762921,95800.0,95799.0,0.002]
[1732835095670,0.127393,95791.0,95790.0,0.0009867]
[1732835095876,0.23023821,95791.0,95790.0,0.0009867]
[1732835096314,0.27683821,95791.0,95790.0,0.0009867]
[1732835096521,0.50423821,95791.0,95790.0,0.0009867]
[1732835097371,0.50423821,95791.0,95790.0,0.0059867]
[1732835097844,0.50423821,95791.0,95790.0,0.0009867]
[1732835100143,0.50423821,95791.0,95772.0,0.27746976]
[1732835100144,0.2978243,95781.0,95772.0,0.27746976]
[1732835100365,0.2978243,95781.0,95768.0,0.27746976]
[1732835100366,0.023,95770.0,95768.0,0.27746976]
[1732835100580,0.10442,95767.0,95766.0,0.27746976]
[1732835100787,0.023,95766.0,95764.0,0.27746976]
[1732835101015,0.023,95766.0,95763.0,0.27746976]
[1732835101016,0.127423,95764.0,95763.0,0.27746976]
[1732835101228,0.127423,95764.0,95744.0,0.256688]
[1732835101229,0.104425,95762.0,95761.0,0.27746976]
[1732835101431,0.127427,95760.0,95759.0,0.27746976]
[1732835101653,0.023,95759.0,95757.0,0.27791669]
[1732835101868,0.231855,95760.0,95757.0,0.27791669]
[1732835101869,0.23027421,95758.0,95757.0,0.27791669]
[1732835102095,0.208868,95755.0,95744.0,0.41036136]
[1732835102327,0.127435,95753.0,95752.0,0.27796591]
[1732835102614,0.127435,95753.0,95735.0,0.208909]
[1732835102615,0.104437,95751.0,95750.0,0.27796591]
[1732835102826,0.127437,95751.0,95750.0,0.27796591]
[1732835103074,0.127437,95751.0,95746.0,0.27796591]
[1732835103075,0.023,95748.0,95746.0,0.27796591]
[1732835103305,0.023,95748.0,95706.0,0.49917613]
[1732835103306,0.0801,95749.0,95737.0,0.23177675]
[1732835103307,0.121451,95738.0,95737.0,0.23177675]
[1732835103517,0.121451,95738.0,95723.0,0.27796591]
[1732835103518,0.277459,95731.0,95723.0,0.23177675]
[1732835103727,0.277459,95731.0,95715.0,0.27796591]
[1732835103728,0.38030421,95731.0,95721.0,0.23177675]
[1732835103929,0.38030421,95731.0,95723.0,0.23177675]
[1732835104342,0.38030421,95731.0,95715.0,0.27796591]
[1732835104343,0.38030421,95731.0,95722.0,0.23177675]
[1732835104551,0.38030421,95731.0,95721.0,0.23177675]
[1732835104989,0.12577017,95740.0,95712.0,0.208959]
[1732835104990,0.023,95739.0,95728.0,0.23177675]
[1732835105203,0.023,95739.0,95722.0,0.00184907]
[1732835105204,0.12577017,95760.0,95736.0,0.104452]
[1732835105407,0.10284521,95754.0,95739.0,0.23177675]
[1732835105626,0.104446,95743.0,95741.0,0.23177675]
[1732835105830,0.10284521,95743.0,95742.0,0.23177675]
[1732835106052,0.10284521,95743.0,95737.0,0.104452]
[1732835106053,0.10284521,95743.0,95741.0,0.23177675]
[1732835106272,0.33462617,95760.0,95737.0,0.208905]
[1732835106273,0.104439,95750.0,95742.0,0.23177675]
[1732835106496,0.104437,95752.0,95742.0,0.23176363]
[1732835106713,0.20728321,95751.0,95744.0,0.104444]
[1732835106920,0.20728321,95751.0,95745.0,0.104444]
[1732835107159,0.313315,95750.0,95740.0,0.33621163]
[1732835107380,0.023,95748.0,95741.0,0.23176363]
[1732835107612,0.023,95750.0,95745.0,0.104443]
[1732835107813,0.127439,95750.0,95745.0,0.104443]
[1732835108459,0.127439,95750.0,95744.0,0.104444]
[1732835108688,0.104439,95749.0,95744.0,0.104444]
[1732835108944,0.023,95748.0,95744.0,0.104444]
[1732835109149,0.10284521,95747.0,95745.0,0.002]
[1732835109352,0.127443,95746.0,95745.0,0.002]
[1732835109558,0.23028821,95746.0,95745.0,0.002]
[1732835109768,0.23028821,95746.0,95741.0,0.002]
[1732835109769,0.023,95742.0,95741.0,0.002]
[1732835110221,0.023,95745.0,95741.0,0.002]
[1732835110425,0.023,95743.0,95742.0,0.0017228]
[1732835110840,0.023,95743.0,95742.0,0.1061698]
[1732835112298,0.023,95743.0,95742.0,0.1101698]
[1732835112727,0.0009891,95757.0,95742.0,0.0057228]
[1732835112972,0.0009891,95757.0,95756.0,0.104432]
[1732835113178,0.0478,95791.0,95757.0,0.01]
[1732835113394,0.10284521,95780.0,95758.0,0.2340269]
[1732835113835,0.20725121,95780.0,95773.0,0.104412]
[1732835114049,0.104409,95777.0,95767.0,0.208838]
[1732835114256,0.10284521,95776.0,95767.0,0.208838]
[1732835114462,0.10284521,95776.0,95758.0,0.00184803]
[1732835114463,0.023,95775.0,95759.0,0.208857]
[1732835114671,0.12584521,95775.0,95760.0,0.00184805]
[1732835114905,0.12584521,95775.0,95772.0,0.104413]
[1732835115116,0.0890133,95781.0,95776.0,0.208818]
[1732835115117,0.023,95780.0,95776.0,0.208818]
[1732835115377,0.0890133,95781.0,95772.0,0.0009875]
[1732835115378,0.0890133,95781.0,95780.0,0.104405]
[1732835115807,0.0890133,95781.0,95780.0,0.10625271]
[1732835116023,0.0890133,95781.0,95780.0,0.104405]
[1732835116453,0.0890133,95781.0,95780.0,0.114405]
[1732835117154,0.0890133,95781.0,95780.0,0.121405]
[1732835117600,0.0890133,95781.0,95780.0,0.12625269]
[1732835117831,0.0018616,95800.0,95799.0,0.104385]
[1732835118266,0.0008618,95800.0,95799.0,0.104385]
[1732835118477,0.0008621,95818.0,95809.0,0.104373]
[1732835118714,0.10284521,95817.0,95799.0,0.20877]
[1732835118928,0.20721121,95817.0,95799.0,0.21777]
[1732835119152,0.20721121,95817.0,95807.0,0.104375]
[1732835119371,0.20721121,95817.0,95808.0,0.104374]
[1732835119576,0.20721121,95817.0,95799.0,0.21777]
[1732835119577,0.023,95816.0,95806.0,0.104377]
[1732835119778,0.0008621,95818.0,95799.0,0.21777]
[1732835119779,0.023,95814.0,95799.0,0.009]
[1732835119997,0.023,95812.0,95805.0,0.104377]
[1732835120198,0.023,95810.0,95803.0,0.0009845]
[1732835120407,0.023,95808.0,95803.0,0.0009845]
[1732835120643,0.023,95808.0,95807.0,0.104376]
[1732835120852,0.023,95809.0,95805.0,0.104378]
[1732835121068,0.023,95809.0,95803.0,0.2097445]
[1732835121069,0.023,95806.0,95803.0,0.0009845]
[1732835121278,0.023,95809.0,95803.0,0.0009845]
[1732835121929,0.023,95809.0,95807.0,0.007]
[1732835122149,0.023,95809.0,95803.0,0.1053645]
[1732835122367,0.023,95809.0,95803.0,0.1103645]
[1732835122608,0.023,95809.0,95803.0,0.1143645]
[1732835122837,0.023,95809.0,95803.0,0.1053645]
[1732835123068,0.023,95809.0,95803.0,0.0009845]
[1732835123277,0.023,95809.0,95807.0,0.004]
[1732835123918,0.023,95809.0,95804.0,0.208759]
[1732835124138,0.0238621,95818.0,95803.0,0.0009845]
[1732835124399,0.0008614,95808.0,95807.0,0.108376]
[1732835124607,0.0008614,95808.0,95807.0,0.104376]
[1732835124834,0.0008614,95808.0,95803.0,0.0009845]
[1732835125041,0.0008614,95808.0,95807.0,0.110376]
[1732835125275,0.0008614,95808.0,95803.0,0.0009845]
[1732835125276,0.0008614,95808.0,95803.0,0.0049845]
[1732835125503,0.0008614,95808.0,95807.0,0.104376]
[1732835125717,0.0008614,95808.0,95803.0,0.0069845]
[1732835125938,0.0008614,95808.0,95803.0,0.0009845]
[1732835126164,0.0008614,95808.0,95806.0,0.104376]
[1732835126377,0.0008614,95808.0,95807.0,0.104376]
[1732835127248,0.0008614,95808.0,95807.0,0.111376]
[1732835127495,0.0008614,95808.0,95807.0,0.007]
[1732835128425,0.0008614,95808.0,95807.0,0.111376]
[1732835129961,0.0008614,95808.0,95807.0,0.116376]
[1732835130866,0.0008614,95808.0,95807.0,0.012]
[1732835132019,0.0008614,95808.0,95807.0,0.12317612]
[1732835132238,0.0008614,95808.0,95807.0,0.01880012]
[1732835132465,0.0008614,95808.0,95807.0,0.12317612]
[1732835132887,0.0008614,95808.0,95807.0,0.01880012]
[1732835133339,0.023,95814.0,95807.0,0.12317612]
[1732835133982,0.023,95814.0,95807.0,0.01880012]
[1732835134213,0.023,95816.0,95809.0,0.104373]
[1732835134429,0.12584521,95816.0,95807.0,0.01880012]
[1732835134637,0.12584521,95816.0,95810.0,0.00756075]
[1732835134876,0.12584521,95816.0,95807.0,0.116375]
[1732835135113,0.23021221,95816.0,95808.0,0.104374]
[1732835135345,0.23021221,95816.0,95808.0,0.00756075]
[1732835135346,0.12584521,95816.0,95808.0,0.00756075]
[1732835135572,0.023,95814.0,95808.0,0.11193575]
[1732835135803,0.023,95814.0,95808.0,0.104375]
[1732835136014,0.127368,95815.0,95808.0,0.104375]
[1732835136225,0.127368,95815.0,95809.0,0.00756075]
[1732835136650,0.104369,95814.0,95809.0,0.00756075]
[1732835136869,0.023,95811.0,95809.0,0.00756075]
[1732835137093,0.023,95811.0,95803.0,0.0009845]
[1732835137311,0.1282294,95815.0,95810.0,0.00756075]
[1732835137516,0.1282294,95815.0,95808.0,0.005]
[1732835137732,0.023,95813.0,95811.0,0.00756075]
[1732835137949,0.023,95813.0,95808.0,0.003]
[1732835137950,0.104374,95809.0,95808.0,0.003]
[1732835138162,0.23021921,95809.0,95808.0,0.003]
[1732835138792,0.313129,95807.0,95803.0,0.0009845]
[1732835139009,0.23022221,95806.0,95803.0,0.0009845]
[1732835139221,0.127379,95804.0,95803.0,0.0009845]
[1732835139921,0.50172421,95804.0,95803.0,0.0009845]
[1732835140131,0.023,95802.0,95789.0,0.000995]
[1732835140343,0.127395,95790.0,95789.0,0.000995]
[1732835140790,0.127393,95792.0,95789.0,0.000995]
[1732835141036,0.023,95790.0,95789.0,0.000995]
[1732835141250,0.023,95792.0,95789.0,0.000995]
[1732835141461,0.023,95791.0,95789.0,0.000995]
[1732835141887,0.023,95792.0,95789.0,0.000995]
[1732835142092,0.023,95792.0,95789.0,0.004995]
[1732835142300,0.023,95791.0,95789.0,0.000995]
[1732835142718,0.023,95791.0,95789.0,0.003995]
[1732835143351,0.023,95791.0,95789.0,0.006995]
[1732835143771,0.023,95795.0,95789.0,0.003995]
[1732835143983,0.127395,95790.0,95789.0,0.000995]
[1732835144405,0.127395,95790.0,95789.0,0.003995]
[1732835144995,0.127395,95790.0,95789.0,0.000995]
[1732835145194,0.023,95790.0,95789.0,0.000995]
[1732835145398,0.023,95790.0,95789.0,0.004995]
[1732835145835,0.023,95791.0,95789.0,0.008995]
[1732835146179,0.023,95791.0,95790.0,0.00758566]
[1732835146379,0.023,95791.0,95789.0,0.008995]
[1732835146380,0.023,95791.0,95789.0,0.004995]
[1732835146675,0.023,95791.0,95789.0,0.008995]
[1732835146884,0.023,95791.0,95790.0,0.00758566]
[1732835147033,0.023,95793.0,95790.0,0.00758566]
[1732835147342,0.023,95791.0,95789.0,0.000995]
[1732835147480,0.023,95791.0,95790.0,0.004]
[1732835147894,0.104393,95791.0,95790.0,0.004]
[1732835148102,0.23023821,95791.0,95790.0,0.006]
[1732835148305,0.30493821,95791.0,95790.0,0.006]
[1732835148650,0.22423821,95791.0,95790.0,0.004]
[1732835148859,0.22423821,95791.0,95790.0,0.003]
[1732835149236,0.22423821,95791.0,95790.0,0.006]
[1732835149811,0.22423821,95791.0,95790.0,0.003]
[1732835150038,0.22423821,95791.0,95790.0,0.006]
[1732835150449,0.22423821,95791.0,95790.0,0.003]
[1732835150899,0.22423821,95791.0,95790.0,0.006]
[1732835153575,0.12584521,95791.0,95790.0,0.006]
[1732835153796,0.23023821,95791.0,95790.0,0.006]
[1732835154009,0.12584521,95791.0,95790.0,0.01358566]
[1732835154245,0.12584521,95791.0,95790.0,0.01253136]
[1732835154707,0.23023821,95791.0,95790.0,0.006]
[1732835155610,0.23023821,95791.0,95790.0,0.01253119]
[1732835156512,0.23023821,95791.0,95790.0,0.02298109]
[1732835157023,0.23023821,95791.0,95790.0,0.01253119]
[1732835157263,0.23023821,95791.0,95790.0,0.02298109]
[1732835157491,0.12584521,95791.0,95790.0,0.02298109]
[1732835157986,0.12584521,95791.0,95790.0,0.03057114]
[1732835158469,0.23023821,95791.0,95790.0,0.03057114]
[1732835158663,0.12584521,95791.0,95790.0,0.03057114]
[1732835158945,0.0008614,95815.0,95790.0,0.03057114]
[1732835158946,0.023,95800.0,95790.0,0.03057114]
[1732835159193,0.104382,95802.0,95795.0,0.104389]
[1732835159434,0.0827,95808.0,95795.0,0.104389]
[1732835159435,0.0827,95808.0,95796.0,0.00653119]
[1732835159685,0.208743,95812.0,95803.0,0.10438]
[1732835159955,0.104375,95808.0,95804.0,0.00653119]
[1732835160199,0.0008611,95809.0,95805.0,0.00653119]
[1732835160447,0.0008611,95809.0,95804.0,0.00674671]
[1732835160707,0.0008611,95809.0,95805.0,0.23253092]
[1732835160982,0.0008611,95809.0,95807.0,0.23253092]
[1732835161233,0.0008611,95809.0,95806.0,0.23906091]
[1732835161476,0.0008611,95809.0,95808.0,0.00652999]
[1732835161733,0.0008611,95809.0,95806.0,0.23253092]
[1732835161734,0.0008611,95809.0,95807.0,0.00674671]
[1732835161975,0.0008611,95809.0,95798.0,0.27906834]
[1732835161976,0.0008611,95809.0,95802.0,0.23255539]
[1732835162222,0.0008611,95809.0,95808.0,0.11196505]
[1732835162469,0.0008611,95809.0,95806.0,0.104377]
[1732835162731,0.0008611,95809.0,95808.0,0.00674671]
[1732835162983,0.0008611,95809.0,95804.0,0.23255539]
[1732835162984,0.0008611,95809.0,95806.0,0.104377]
[1732835163230,0.0008611,95809.0,95808.0,0.0004074]
[1732835163482,0.0008611,95809.0,95808.0,0.11131242]
[1732835163483,0.01847367,95809.0,95808.0,0.11131242]
[1732835163728,0.0008614,95815.0,95808.0,0.01451803]
[1732835163973,0.0008614,95815.0,95811.0,0.104371]
[1732835164213,0.0008614,95815.0,95812.0,0.11090102]
[1732835164460,0.0008614,95815.0,95812.0,0.00673832]
[1732835164704,0.0008614,95815.0,95813.0,0.104369]
[1732835165188,0.0008614,95815.0,95813.0,0.11194961]
[1732835165428,0.0008614,95815.0,95814.0,0.104368]
[1732835165670,0.0008614,95815.0,95813.0,0.00758061]
[1732835165912,0.0008614,95815.0,95813.0,0.104369]
[1732835166243,0.0008614,95815.0,95812.0,0.003]
[1732835166244,0.0008614,95815.0,95814.0,0.104368]
[1732835166248,0.0008614,95815.0,95814.0,0.00758061]
[1732835166470,0.0008614,95815.0,95812.0,0.10737]
[1732835166694,0.0008614,95815.0,95814.0,0.00758061]
[1732835166911,0.0008614,95815.0,95813.0,0.003]
[1732835167130,0.0008614,95815.0,95814.0,0.00758061]
[1732835167526,0.0008614,95815.0,95814.0,0.003]
[1732835167743,0.0008614,95815.0,95814.0,0.01058061]
[1732835167964,0.0008614,95815.0,95814.0,0.11194861]
[1732835168936,0.0008614,95815.0,95814.0,0.00758061]
[1732835169147,0.0008614,95815.0,95814.0,0.11089742]
[1732835169353,0.0008614,95815.0,95814.0,0.11845708]
[1732835169568,0.0008614,95815.0,95814.0,0.01408908]
[1732835170037,0.0008614,95815.0,95814.0,0.01708908]
[1732835170247,0.0008614,95815.0,95814.0,0.02008908]
[1732835171588,0.0008614,95815.0,95814.0,0.12445708]
[1732835172275,0.0008614,95815.0,95814.0,0.11792766]
[1732835172537,0.0008614,95815.0,95814.0,0.35223955]
[1732835172721,0.0008614,95815.0,95814.0,0.11792766]
[1732835172935,0.0008614,95815.0,95814.0,0.11977466]
[1732835173150,0.0008614,95815.0,95814.0,0.126303]
[1732835173593,0.0008614,95815.0,95814.0,0.205103]
[1732835173842,0.0008614,95815.0,95814.0,0.48406065]
[1732835174061,0.0008614,95815.0,95814.0,0.200256]
[1732835174272,0.0008614,95815.0,95814.0,0.19910283]
[1732835174486,0.0008614,95815.0,95814.0,0.21510283]
[1732835175380,0.0008614,95815.0,95814.0,0.22510283]
[1732835175597,0.0008614,95815.0,95814.0,0.223256]
[1732835176507,0.0008614,95815.0,95814.0,0.50170013]
[1732835176734,0.0008614,95815.0,95814.0,0.32247594]
[1732835177187,0.0008614,95815.0,95814.0,0.60090715]
[1732835177397,0.0008614,95815.0,95814.0,0.60084029]
[1732835177680,0.0008614,95815.0,95814.0,0.59084029]
[1732835177927,0.0008614,95815.0,95814.0,0.3059476]
[1732835178148,0.00104509,95815.0,95814.0,0.3059476]
[1732835178372,0.0008621,95818.0,95817.0,0.114365]
[1732835178580,0.0008621,95818.0,95817.0,0.1162118]
[1732835178795,0.0008621,95818.0,95817.0,0.12273904]
[1732835179014,0.0008621,95818.0,95817.0,0.1308132]
[1732835180152,0.0008621,95818.0,95817.0,0.1368132]
[1732835180373,0.0008621,95818.0,95817.0,0.1458132]
[1732835182152,0.0008621,95818.0,95817.0,0.13928567]
[1732835182374,0.0008621,95818.0,95817.0,0.14581331]
[1732835182811,0.0008621,95818.0,95817.0,0.37752926]
[1732835183027,0.0008621,95818.0,95817.0,0.37568246]
[1732835183472,0.0008621,95818.0,95817.0,0.14396651]
[1732835183683,0.0008621,95818.0,95817.0,0.14581336]
[1732835184158,0.0008621,95818.0,95817.0,0.13928572]
[1732835185065,0.0008621,95818.0,95817.0,0.14581359]
[1732835187284,0.0008621,95818.0,95817.0,0.02960174]
[1732835187769,0.0008621,95818.0,95817.0,0.13581377]
[1732835188460,0.0008621,95818.0,95817.0,0.13396674]
[1732835193342,0.0238623,95827.0,95818.0,0.104364]
[1732835193546,0.1052163,95827.0,95821.0,0.0009906]
[1732835193750,0.1052163,95827.0,95822.0,0.00652787]
[1732835193955,0.1052163,95827.0,95823.0,0.00652787]
[1732835194167,0.104355,95826.0,95824.0,0.00652787]
[1732835194382,0.104355,95826.0,95825.0,0.00652787]
[1732835194601,0.0008623,95827.0,95825.0,0.00652787]
[1732835194801,0.0008623,95827.0,95826.0,0.00652787]
[1732835195016,0.0008623,95827.0,95822.0,0.00652787]
[1732835195230,0.0008623,95827.0,95826.0,0.0074824]
[1732835195437,0.0238623,95827.0,95824.0,0.004]
[1732835195669,0.0238623,95827.0,95825.0,0.01401087]
[1732835195898,0.0238623,95827.0,95825.0,0.0074824]
[1732835196318,0.20806151,95827.0,95826.0,0.00652847]
[1732835196528,0.12670751,95827.0,95826.0,0.00652847]
[1732835196765,0.12670751,95827.0,95826.0,0.01401087]
[1732835197524,0.0008623,95827.0,95826.0,0.01901087]
[1732835197753,0.0008623,95827.0,95826.0,0.02301087]
[1732835198214,0.0008623,95827.0,95826.0,0.12736587]
[1732835204668,0.0008623,95827.0,95826.0,0.35925269]
[1732835205324,0.0008623,95827.0,95826.0,0.35976083]
[1732835205543,0.0008623,95827.0,95826.0,0.12736587]
[1732835208409,0.0012623,95829.0,95826.0,0.02301087]
[1732835208634,0.0012623,95829.0,95828.0,0.104353]
[1732835208857,0.0012623,95829.0,95828.0,0.11088147]
[1732835209075,0.0012623,95829.0,95828.0,0.11835398]
[1732835210200,0.0012623,95829.0,95828.0,0.12235398]
[1732835211102,0.0012623,95829.0,95828.0,0.12535398]
[1732835212191,0.0012623,95829.0,95828.0,0.12535329]
[1732835213461,0.0012623,95829.0,95828.0,0.02100029]
[1732835216590,0.2514143,95829.0,95828.0,0.02100029]
[1732835216839,0.35425951,95829.0,95828.0,0.02100029]
[1732835217055,0.173,95828.0,95825.0,0.23286049]
[1732835217317,0.15,95821.0,95817.0,0.0017246]
[1732835217504,0.50300921,95818.0,95817.0,0.0017246]
[1732835219543,0.51153735,95818.0,95817.0,0.0017246]
[1732835220038,0.51253735,95818.0,95817.0,0.0017246]
[1732835220257,0.51353735,95818.0,95817.0,0.0017246]
[1732835220469,0.51253735,95818.0,95817.0,0.0017246]
[1732835220911,0.51853735,95818.0,95817.0,0.0017246]
[1732835221181,0.51753735,95818.0,95817.0,0.0017246]
[1732835221393,0.52296003,95818.0,95817.0,0.0017246]
[1732835222286,0.52196003,95818.0,95817.0,0.0017246]
[1732835222794,0.52396003,95818.0,95817.0,0.0017246]
[1732835223012,0.52296003,95818.0,95817.0,0.0017246]
[1732835223457,0.51096003,95818.0,95817.0,0.0017246]
[1732835223685,0.51096003,95818.0,95804.0,0.0009861]
[1732835223686,0.277367,95815.0,95804.0,0.0009861]
[1732835223948,0.50601221,95815.0,95804.0,0.0009861]
[1732835224418,1.04731221,95815.0,95804.0,0.0009861]
[1732835226048,1.05031221,95815.0,95804.0,0.0009861]
[1732835226277,1.04731221,95815.0,95804.0,0.0009861]
[1732835226737,1.05531221,95815.0,95814.0,0.0027246]
[1732835227163,1.05831221,95815.0,95814.0,0.0027246]
[1732835227610,1.05831221,95815.0,95793.0,0.0009948]
[1732835227611,0.10439,95794.0,95793.0,0.0009948]
[1732835227819,0.36063521,95794.0,95793.0,0.0009948]
[1732835228306,0.104392,95792.0,95791.0,0.001725]
[1732835228533,0.20723721,95792.0,95791.0,0.001725]
[1732835228991,0.47933721,95792.0,95791.0,0.001725]
[1732835229650,0.50233721,95792.0,95791.0,0.001725]
[1732835230085,0.50233721,95792.0,95791.0,0.005725]
[1732835230390,0.51082734,95792.0,95791.0,0.001725]
[1732835230629,0.51582734,95792.0,95791.0,0.001725]
[1732835230852,0.51782734,95792.0,95791.0,0.001725]
[1732835232148,0.51282734,95792.0,95791.0,0.001725]
[1732835232357,0.51982734,95792.0,95791.0,0.002725]
[1732835232832,0.51782734,95792.0,95791.0,0.002725]
[1732835233700,0.51732734,95792.0,95791.0,0.002725]
[1732835234374,0.51932734,95792.0,95791.0,0.002725]
[1732835235030,0.114393,95791.0,95790.0,0.02]
[1732835235245,0.93153821,95791.0,95790.0,0.02]
[1732835235512,0.391004,95781.0,95780.0,0.0017228]
[1732835235725,0.49384921,95781.0,95780.0,0.0017228]
[1732835237309,0.61099443,95781.0,95780.0,0.0017228]
[1732835237528,0.61199443,95781.0,95780.0,0.0017228]
[1732835238220,0.62035305,95781.0,95780.0,0.0017228]
[1732835238425,0.52332909,95781.0,95780.0,0.0017228]
[1732835238843,0.52232909,95781.0,95780.0,0.0017228]
[1732835239053,0.51932909,95781.0,95780.0,0.0017228]
[1732835239261,0.52232909,95781.0,95780.0,0.0017228]
[1732835239507,0.52232909,95781.0,95757.0,0.0009824]
[1732835239508,0.254629,95758.0,95757.0,0.0009824]
[1732835239737,0.254629,95758.0,95742.0,0.0017228]
[1732835239738,0.104446,95743.0,95742.0,0.0017228]
[1732835239968,0.20729121,95743.0,95742.0,0.0017228]
[1732835241485,0.23029121,95743.0,95742.0,0.0017228]
[1732835242483,0.23029121,95743.0,95742.0,0.0037228]
[1732835242864,0.23029121,95743.0,95742.0,0.0017228]
[1732835243276,0.23129121,95743.0,95742.0,0.0037228]